Cogmind - Beta 14 @@@ ROGUE MODE // 2024.10.15 @ 15:55:03 Player: Tereza Result: Destroyed by G-47 Trooper with Particle Gun Performance ------------- Evolutions (2) 1000 Regions Visited (3) 600 Robots Destroyed (37) 185 Value Destroyed (1185) 1185 Prototype IDs (2) 40 Alien Tech Used (0) 0 Bonus (12) 12 TOTAL SCORE: 3022 Bonus ------- High Alert Combat Kills 12 Cogmind --------- Core Integrity 0/550 Matter 246/300 Energy 58/100 System Corruption 0% Temperature Cool (9) Movement Core (200) Ox3 Location -8/Materials Parts ------- > --- POWER (1) -------- (None) > --- PROPULSION (2) --- (None) > --- UTILITY (6) ------ Medium Storage Unit Improved Signal Interpreter Core Analyzer > --- WEAPON (2) ------- (None) > --- INVENTORY (10) --- Improved Sensor Array Terrain Scanner Hacking Suite Beam Rifle Spread Laser Heavy Laser Peak State ------------ > --- POWER ------------ Improved Ion Engine > --- PROPULSION ------- Medium Treads Medium Treads > --- UTILITY ---------- Heat Sink Improved Heat Sink Medium Storage Unit Improved Sensor Array Improved Signal Interpreter Core Analyzer > --- WEAPON ----------- Heavy Ion Cannon Assault Cannon > --- INVENTORY -------- Light Nuclear Core Medium Treads Medium Treads Improved Sensor Array Terrain Scanner Core Analyzer Hacking Suite Beam Rifle Spread Laser Heavy Laser [Rating: 35] Favorites ----------- Power Improved Ion Engine Engine Improved Ion Engine Power Core Light Nuclear Core Propulsion Light Treads Treads Light Treads Utility Heat Sink Device Heat Sink Storage Medium Storage Unit Processor Improved Signal Interpreter Protection Light Armor Plating Weapon Advanced Beam Cannon Energy Gun Spread Laser Energy Cannon Advanced Beam Cannon Ballistic Gun Heavy Assault Rifle Ballistic Cannon Assault Cannon Build | -11 -10 -9 -8 ------- Run | Yrd Mat Mat Mat Slots Evolved 4 | . . 2 2 Power . | . . . . Propulsion . | . . . . Utility 4 | . . 2 2 Weapon . | . . . . Parts Attached 50 | 6 3 16 25 Power 9 | 1 . 3 5 Engine 8 | 1 . 3 4 Core 1 | . . . 1 Reactor . | . . . . Propulsion 14 | 2 1 4 7 Treads 14 | 2 1 4 7 Leg . | . . . . Wheel . | . . . . Hover . | . . . . Flight . | . . . . Utility 15 | 1 2 4 8 Device 8 | . 1 3 4 Storage 3 | 1 1 1 . Processor 3 | . . . 3 Hackware . | . . . . Protection 1 | . . . 1 Artifact . | . . . . Weapon 12 | 2 . 5 5 Energy Gun 3 | . . 1 2 Energy Cannon 3 | . . 2 1 Ballistic Gun 5 | 2 . 2 1 Ballistic Cannon 1 | . . . 1 Launcher . | . . . . Special Weapon . | . . . . Impact Weapon . | . . . . Slashing Weapon . | . . . . Piercing Weapon . | . . . . Special Melee Weapon . | . . . . Unidentified Prototypes 2 | . . 1 1 Parts Lost 18 | . . 2 16 Power 3 | . . . 3 Propulsion 8 | . . 1 7 Utility 5 | . . 1 4 Weapon 2 | . . . 2 Highest Loss Streak 11 | . . 2 11 To Critical Strikes . | . . . . Average Slot Usage (%) 90 | . 94 84 93 Engine 10 | . 14 10 8 Treads 20 | . 28 21 17 Device 23 | . 9 19 32 Storage 10 | . 14 11 9 Processor 1 | . . . 4 Protection 1 | . . . 3 Energy Gun 2 | . . 6 . Energy Cannon 5 | . . 4 8 Ballistic Gun 11 | . 28 11 4 Ballistic Cannon 1 | . . . 3 Peak Build Rating 35 | 6 7 14 35 Average Rating 14 | 4 6 11 20 On Entrance 6 | . 6 7 14 Naked Turns . | . . . . Heaviest Build 34 | 13 19 27 34 Greatest Support 56 | 40 40 40 56 Greatest Overweight (x) 3 | . . 1 3 Average Overweight (x) . | . . . . Largest Inventory Capacity 10 | 8 10 10 10 Average Capacity 9 | 6 8 10 10 Most Carried 10 | 6 8 10 10 Average Carried 9 | 4 7 9 9 Final Capacity 10 | 8 10 10 10 Final Carried 10 | 6 8 10 6 Class Distribution -------------------- 54% | Scavenger-Mutant 45% | Mutant Dominant Class ---------------- Mutant | -10/Materials Scavenger-Mutant | -9/Materials Scavenger-Mutant | -8/Materials Resources | -11 -10 -9 -8 ----------- Run | Yrd Mat Mat Mat Matter Collected 943 | 215 18 337 373 Remotely . | . . . . Salvage Created 1323 | . 101 454 768 Parts 81 | . 12 23 46 Haulers Intercepted 2 | . . 2 . Recyclers Shooed 1 | . 1 . . Parts Field Recycled . | . . . . Retrieved Matter . | . . . . Parts Self-Destructed . | . . . . Prevented . | . . . . Kills | -11 -10 -9 -8 ------- Run | Yrd Mat Mat Mat Combat Hostiles Destroyed 32 | . 4 9 19 Guns 10 | . 4 5 1 Cannons 19 | . . 2 17 Classes Destroyed 8 | . 3 2 3 Hauler 2 | . . 2 . Operator 1 | . . . 1 Watcher 2 | . 1 . 1 Swarmer 6 | . 3 . 3 Cutter 3 | . . . 3 Grunt 15 | . 1 6 8 Sentry 7 | . . 3 4 Hunter 1 | . . . 1 Best Kill Streak 5 | . 5 3 4 Combat Bots Only 4 | . 4 2 4 Max Kills in Single Turn 2 | . 1 2 1 Gunslinging 1 | . . 1 . Exploded . | . . . . Melee . | . . . . Uniques/NPCs Destroyed . | . . . . Combat | -11 -10 -9 -8 -------- Run | Yrd Mat Mat Mat Hostile Shots Fired 243 | . 19 37 187 Missed 61 | . 7 10 44 Damage Taken 3085 | . 95 483 2507 Core 594 | . . 37 557 Absorbed by Shields . | . . . . Core Remaining (%) 96 | 100 100 90 . Volleys Fired 107 | . 15 32 60 Largest 2 | . 2 2 2 Hottest 130 | . 40 91 130 Shots Fired 213 | . 30 64 119 Gun 111 | . 30 55 26 Cannon 102 | . . 9 93 Launcher . | . . . . Special . | . . . . Kinetic 116 | . 30 32 54 Thermal 97 | . . 32 65 Explosive . | . . . . Electromagnetic . | . . . . Robot Hit Streak 11 | . 7 11 7 Robot Miss Streak 10 | . 3 10 4 Penetration Max . | . . . . Secondary Targets 3 | . 1 2 . Max Gunslinging Chain 1 | . 1 1 . Shots Hit Robots 131 | . 17 49 65 Core Hits 71 | . 7 31 33 Critical Kills 4 | . . 3 1 Critical Parts Destroyed . | . . . . Critical Strikes 5 | . . 3 2 Meltdown 3 | . . 2 1 Destroy 1 | . . 1 . Blast 1 | . . . 1 Melee Attacks . | . . . . Impact . | . . . . Slashing . | . . . . Piercing . | . . . . Sneak Attacks . | . . . . Combat Hostiles . | . . . . Follow-up Attacks . | . . . . Damage Inflicted 2312 | . 173 738 1401 Guns 948 | . 173 595 180 Cannons 1363 | . . 143 1220 Explosions . | . . . . Melee . | . . . . Ramming 1 | . . . 1 Kinetic 1044 | . 173 293 578 Thermal 1267 | . . 445 822 Explosive . | . . . . Electromagnetic . | . . . . Impact . | . . . . Slashing . | . . . . Piercing . | . . . . Highest Corruption 1 | . . 1 . Average Corruption 1 | . . 1 . Corruption Purged . | . . . . Corruption Blocked . | . . . . Effects 1 | . . 1 . Matter Fused 1 | . . 1 . Overload Shots . | . . . . Overflow Damage 34 | . . . 34 Projectiles 34 | . . . 34 Explosions . | . . . . Melee . | . . . . Knockbacks 6 | . . . 6 Impact . | . . . . Kinetic 6 | . . . 6 Secondary . | . . . . Self-Inflicted Damage . | . . . . Shots . | . . . . Rammed 1 | . . . 1 Targets Rammed 1 | . . . 1 Kicked . | . . . . Crushed . | . . . . Highest Temperature 201 | . 6 153 201 Average Temperature 73 | . 6 61 99 Received Heat Transfer 1014 | . 6 189 819 Siege Activations . | . . . . Robots Corrupted . | . . . . Combat Hostiles . | . . . . Parts Fried . | . . . . Impact Corruptions . | . . . . Robots Melted 3 | . . 2 1 Combat Hostiles 3 | . . 2 1 Parts Melted 3 | . . 2 1 Heat Transferred 2082 | . . 639 1443 Parts Sabotaged . | . . . . Parts Stolen . | . . . . Parts Stripped . | . . . . Power Chain Reactions . | . . . . Alert | -11 -10 -9 -8 ------- Run | Yrd Mat Mat Mat Peak Influence 435 | . 138 204 435 Initial 61 | . . 57 61 Average 158 | . 110 102 237 Maximum Alert Level 2 | . . 1 2 Low Security (%) 72 | 100 100 98 39 Level 1 25 | . . 1 58 Level 2 1 | . . . 2 Level 3 . | . . . . Level 4 . | . . . . Level 5 . | . . . . High Security . | . . . . Max Security . | . . . . Squads Dispatched 5 | . 1 . 4 Investigation . | . . . . Extermination . | . . . . Reinforcement 5 | . 1 . 4 Assault . | . . . . Garrison . | . . . . Intercept . | . . . . Searches Triggered . | . . . . Construction Impeded . | . . . . Haulers Reinforced . | . . . . Active Scanning Responses . | . . . . Cargo Convoy Interrupts . | . . . . Stealth | -11 -10 -9 -8 --------- Run | Yrd Mat Mat Mat Distress Signals 2 | . 1 . 1 Communications Jammed . | . . . . Distress Signals . | . . . . Times Spotted 49 | . 5 12 32 Peak Tracking Total 8 | . 3 2 8 Tactical Retreats 2 | . . . 2 Traps | -11 -10 -9 -8 ------- Run | Yrd Mat Mat Mat Traps Triggered 5 | . 1 4 . Indirectly . | . . . . Trap Hack Attempts . | . . . . Triggered . | . . . . Disarmed . | . . . . Reprogrammed . | . . . . Reused . | . . . . Traps Extracted . | . . . . Installed . | . . . . Triggered . | . . . . Machines | -11 -10 -9 -8 ---------- Run | Yrd Mat Mat Mat Machines Disabled . | . . . . Max in Single Turn . | . . . . Machines Repaired . | . . . . Machines Dismantled . | . . . . Machines Sabotaged . | . . . . Overloaded Fab Kills . | . . . . Hacking | -11 -10 -9 -8 --------- Run | Yrd Mat Mat Mat Machines Accessed 6 | . 3 2 1 Terminals 6 | . 3 2 1 Fabricators . | . . . . Repair Stations . | . . . . Recycling Units . | . . . . Scanalyzers . | . . . . Garrison Access . | . . . . Total Hacks 19 | . 8 8 3 Successful 8 | . 4 2 2 Failed 11 | . 4 6 1 Catastrophic . | . . . . Database Lockouts . | . . . . Manual 9 | . 6 2 1 Terminals 19 | . 8 8 3 Fabricators . | . . . . Repair Stations . | . . . . Recycling Units . | . . . . Scanalyzers . | . . . . Garrison Access . | . . . . Terminal Hacks 4 | . 2 1 1 Part Schematic 1 | . 1 . . Alert Level 1 | . . . 1 Hauler Manifests 1 | . . 1 . Zone Layout 1 | . 1 . . Fabricator Hacks . | . . . . Repair Station Hacks . | . . . . Recycling Unit Hacks . | . . . . Scanalyzer . | . . . . Garrison Access Hacks . | . . . . Unauthorized Hacks 4 | . 2 1 1 Terminals 4 | . 2 1 1 Botnet 4 | . 2 1 1 Fabricators . | . . . . Repair Stations . | . . . . Recycling Units . | . . . . Scanalyzers . | . . . . Garrison Access . | . . . . Data Cores Recovered . | . . . . Used . | . . . . Hacking Detections 4 | . 1 2 1 Full Trace Events 1 | . . 1 . Feedback Events . | . . . . Feedback Blocked . | . . . . Robot Schematics Acquired . | . . . . Robots Built . | . . . . Authchips . | . . . . Time . | . . . . Total Robot Build Rating . | . . . . Part Schematics Acquired 1 | . 1 . . Parts Built . | . . . . Authchips . | . . . . Time . | . . . . Total Part Build Rating . | . . . . Parts Repaired . | . . . . Time . | . . . . Parts Recycled . | . . . . Recycled Matter . | . . . . Retrieved Matter . | . . . . Retrieved Components . | . . . . Parts Scanalyzed . | . . . . Part Schematics Acquired . | . . . . Parts Damaged . | . . . . Bothacking | -11 -10 -9 -8 ------------ Run | Yrd Mat Mat Mat Used RIF Installer . | . . . . Robots Hacked . | . . . . Non-combat . | . . . . Combat . | . . . . Robot Hacks Applied . | . . . . Relay Couplers Released . | . . . . Fabnet Peak Effective % . | . . . . Robots Rewired . | . . . . Allies Hacked . | . . . . Hacks Repelled . | . . . . Allies | -11 -10 -9 -8 -------- Run | Yrd Mat Mat Mat Total Allies . | . . . . Largest Group . | . . . . Highest-Rated Group . | . . . . Highest-Rated Ally . | . . . . Total Orders . | . . . . Ally Attacks . | . . . . Total Damage . | . . . . Kills . | . . . . Allies Corrupted . | . . . . Allies Melted . | . . . . Intel | -11 -10 -9 -8 ------- Run | Yrd Mat Mat Mat Robot Analysis Total . | . . . . Derelict Logs Recovered . | . . . . Drone Launches . | . . . . Drone Recoveries . | . . . . Exploration | -11 -10 -9 -8 ------------- Run | Yrd Mat Mat Mat Turns Passed 1839 | 88 317 631 803 Spaces Moved 838 | 48 168 277 345 Core 7 | 3 . . 4 Treads 831 | 45 168 277 341 Legs . | . . . . Wheels . | . . . . Hover . | . . . . Flight . | . . . . Fastest Speed 50 | 50 160 160 160 Average Speed 160 | 153 160 163 160 Slowest Speed 240 | 160 160 240 200 Overloaded Moves . | . . . . Propulsion Burnouts . | . . . . Robots Hopped . | . . . . Cave-ins Triggered . | . . . . Exploration Rate (%) 24 | 3 38 23 35 Regions Visited 3 Branch Regions . Pre-discovered Areas . | . . . . Known Exits Taken . | . . . . Unknown Exits Taken 3 | 1 1 1 . Scrap Searched . | . . . . Spaces Dug . | . . . . Terrain Destroyed 12 | . . . 12 Melee . | . . . . Projectile 12 | . . . 12 AOE . | . . . . Terrain Rammed . | . . . . Walls Destroyed . | . . . . Machines Disabled . | . . . . Actions | -11 -10 -9 -8 --------- Run | Yrd Mat Mat Mat Total 1128 | 60 189 391 488 Wait 72 | . 1 53 18 Move 835 | 47 167 276 345 Hop . | . . . . Pick Up 28 | 7 2 4 15 Fast Attach 28 | 5 2 12 9 Attach 9 | 1 . . 8 Detach 2 | . . 1 1 Swap 13 | . 1 4 8 Drop 33 | . 1 9 23 Fire 107 | . 15 32 60 Melee . | . . . . Ram . | . . . . Kick . | . . . . Crush 1 | . . . 1 Escape Stasis . | . . . . Rewire . | . . . . Trap . | . . . . Miscellaneous . | . . . . Route ------- -11/Scrapyard -10/Materials -9/Materials -8/Materials (discovered 1 exit: [*Fac]) History --------- Turn | Location | Event 18 | -11/Scrapyard | Discovered new exit (range 15) 89 | -11/Scrapyard | Entered Materials 310 | -10/Materials | Build established: Mutant 381 | -10/Materials | Discovered new exit (range 10) 406 | -10/Materials | Entered another Materials area 406 | -9/Materials | Evolved 2 slots: Utility x2 985 | -9/Materials | Discovered new exit (range 16) 1028 | -9/Materials | Build established: Scavenger-Mutant 1037 | -9/Materials | Entered another Materials area 1037 | -8/Materials | Evolved 2 slots: Utility x2 1714 | -8/Materials | Lost 3 parts (1p1n1u) 1812 | -8/Materials | Core integrity fell below 50% 1821 | -8/Materials | Core integrity fell below 20% 1826 | -8/Materials | Discovered new exit (range 11) 1840 | -8/Materials | Destroyed by G-47 Trooper with Particle Gun Last Messages --------------- C-17 Slicer destroyed. Med. Treads destroyed. Hvy. Ion Cannon destroyed. Lgt. Nuclear Core destroyed. Med. Treads destroyed. U-05 Engineer builds a Wall. Particle Gun destroyed. Acquired 11 matter. G-47 Trooper knocked back. U-05 Engineer lays Concrete. U-05 Engineer builds a Wall. Slammed into Y-45 Defender. EXIT=FOUND U-05 Engineer lays Concrete. The unstable cave ceiling collapses. U-05 Engineer builds a Wall. Core Analyzer destroyed. Critical hit (Blast). Med. Treads destroyed. Imp. Heat Sink destroyed. Map ----- +----------------------------------------------------+ | | | | | | | | | | | | | | | | | | | | | | | | | ????????????????????????????????????????? | | ????????????????????????????????????????? | | ????????????????????????????????????????? | | ????????????????????????????????????????? | | ????????????????????????????????????????? | | ????????????????????????????????????????? | | ????????????????????????????????????????? | | ????????????????????????????????????????? | | ??????????????????????###???????????????? | | ???????????????###?####;##??????????????? | | ????????????####;### #??????????????? | | ????????????# % #??????????????? | | ????????????# < Yg #??????????????? | | ????????????# @ g #??????????????? | | ????????????########H #??????????????? | | ???????????????????## "##########?????? | | ???????????????????## # ! = #?????? | | ?????????????????###" # #?????? | | ?????????????????# #" ! #?????? | | ??????????????????# = #?????? | | ??????????????????# %] / """"""####?????? | | ??????????????????# !=*% """""#????????? | | ????????????????### %%/= ["#???????? | | ????????????????#]] == %# "#???????? | | ????????????????#] # "#???????? | | ????????????????#== "#???????? | | ????????????????# = "#???????? | | ????????????????#!= " ##???????? | | ????????????????# ! #""""""#????????? | | ????????????????#"### # #####????????? | | ????????????######### ####????????????? | | ??????? % % %################# | | ??????????????#######% % = * | | ???????????????????## %[ = | | ????????????????????#% % | | ????????????????????# ################# | | ????????????????????# #???????????????? | | ????????????????????# #???????????????? | +----------------------------------------------------+ Best States ------------- Heat Dissipation 75 Energy Generation 14 Energy Capacity 275 Matter Stores 300 Matter Capacity 300 Sight Range 16 Robot Scan Range 15 Terrain Scan Density 10 Additional Mass Support 6 Armor Coverage 150 Evasion (%) 40 Core Analysis 9 Recoil Reduction 2 Item Schematics ----------------- Targeting Computer | -10/Materials | Hacked Robot Schematics ------------------ None Fabricated ------------ Nothing Alien Tech Used ----------------- None Achievements -------------- None Challenges ------------ None Game ------ Seed OvertunedTrackerNeutralizer Manual? 0 Play Time 00:13:48 Cumulative 73.3 hours Start 2024.10.15 @ 15:43:36 End 2024.10.15 @ 15:55:03 Sessions 1 Manual Loads 0 Difficulty Rogue Special Mode None Game No. 86 Rogue 86 Adventurer 0 Explorer 0 Win Type - Total 0 Types 0/0/0/0/0/0/0/0/0 Lore% 51 Gallery% 43 Achievement% 36 Wizard Run 0 Options --------- Layout 1 ASCII 0 Keyboard 1 Movement Numpad Keybinds 0 Fullscreen 1 Font 24/Smallcaps Map View 50x35 Zoom Use 0% Tactical HUD 0 Map Filters NONE Filters NONE Steam 1 RUN: 9ebbade0-c4ac-4a21-bf63-bd8b717f8770